bitfinex-derivatives/quotes_SOLF0:USTF0_20251125
["timestamp","ask_amount","ask_price","bid_price","bid_amount"]
[1764040771449,3.02664878,138.22,138.21,6.76140217]
[1764040772455,3.02664878,138.22,138.21,6.78476378]
[1764040773257,0.04664878,138.22,138.21,6.78476378]
[1764040773761,0.04664878,138.22,138.21,9.73476378]
[1764040779666,0.04664878,138.22,138.21,16.40524971]
[1764040781065,0.04664878,138.22,138.21,16.42724978]
[1764040787471,3.01664878,138.22,138.21,13.47724978]
[1764040787853,3.01664878,138.22,138.21,6.78476378]
[1764040789965,0.04664878,138.22,138.21,9.91476378]
[1764040790158,0.04664878,138.22,138.21,6.78476378]
[1764040790358,3.01664878,138.22,138.21,6.78476378]
[1764040790780,2.97,138.2,138.19,0.05319032]
[1764040790961,9.4841,138.21,138.19,3.18319032]
[1764040791664,6.5141,138.21,138.2,3.13]
[1764040793667,6.5141,138.21,138.19,9.87567632]
[1764040795473,9.3741,138.21,138.19,9.87567632]
[1764040800280,2.86,138.2,138.19,0.05319032]
[1764040800676,6.5141,138.21,138.19,3.14319032]
[1764040800879,9.3741,138.21,138.19,3.14319032]
[1764040801066,2.86,138.2,138.19,0.05319032]
[1764040801375,2.86,138.18,138.17,9.462e-05]
[1764040801574,2.86,138.18,138.15,12.01051301]
[1764040801776,2.86,138.18,138.15,3.09]
[1764040801983,2.86,138.18,138.16,3.09]
[1764040802371,0.05246814,138.18,138.16,3.13789504]
[1764040803376,2.91246814,138.18,138.16,3.13789504]
[1764040804075,9.42796814,138.18,138.16,3.13789504]
[1764040805175,2.86,138.17,138.16,0.04789504]
[1764040806884,2.86,138.14,138.11,8.92051301]
[1764040807180,2.86,138.14,138.1,3.09]
[1764040807864,2.90999351,138.13,138.11,0.05000092]
[1764040808069,6.5185,138.12,138.11,0.05000092]
[1764040808871,9.3785,138.12,138.11,0.05000092]
[1764040811775,6.5185,138.12,138.11,0.05000092]
[1764040811977,6.5185,138.12,138.11,3.14000092]
[1764040813067,0.04999351,138.13,138.11,3.14000092]
[1764040814182,2.90999351,138.13,138.11,3.14000092]
[1764040814575,9.42799351,138.13,138.11,0.05000092]
[1764040814975,2.86,138.12,138.11,0.05000092]
[1764040820974,9.52799351,138.13,138.11,0.05000092]
[1764040821183,2.96,138.12,138.11,0.05000092]
[1764040822590,9.52799351,138.13,138.11,3.03000092]
[1764040822982,6.56799351,138.13,138.11,3.03000092]
[1764040823486,0.04999351,138.13,138.11,3.03000092]
[1764040823877,3.00999351,138.13,138.11,0.05000092]
[1764040824075,3.00999351,138.13,138.11,3.03000092]
[1764040824289,0.04999351,138.13,138.11,3.03000092]
[1764040825990,24.76,138.17,138.12,2.98]
[1764040826394,31.2761,138.17,138.12,2.98]
[1764040826880,6.5166,138.16,138.12,2.98]
[1764040827081,0.04670906,138.15,138.12,2.98]
[1764040828982,0.04670906,138.15,138.13,2.98]
[1764040832386,0.04670906,138.15,138.13,9.4977]
[1764040832683,0.04670906,138.15,138.14,2.98]
[1764040837490,2.96,138.2,138.15,2.98]
[1764040838300,2.96,138.2,138.16,2.98]
[1764040838494,0.05501167,138.19,138.17,3.03466048]
[1764040840301,0.05501167,138.19,138.17,9.55046048]
[1764040840499,3.01501167,138.19,138.17,3.03466048]
[1764040840688,3.01501167,138.19,138.17,0.05466048]
[1764040842190,3.01501167,138.19,138.17,3.03466048]
[1764040842394,0.05501167,138.19,138.17,3.03466048]
[1764040846402,3.01501167,138.19,138.17,0.05466048]
[1764040846701,2.96,138.18,138.17,0.05466048]
[1764040846901,9.54001167,138.19,138.17,0.05466048]
[1764040847093,2.97,138.18,138.17,0.05466048]
[1764040849303,6.57001167,138.19,138.17,3.09466048]
[1764040851000,0.05501167,138.19,138.17,3.09466048]
[1764040852411,24.74,138.25,138.17,3.09466048]
[1764040852596,2.97,138.25,138.18,3.04]
[1764040852796,2.97,138.27,138.18,3.04]
[1764040853504,0.04873477,138.24,138.21,3.09178792]
[1764040854311,0.04873477,138.24,138.21,9.60568792]
[1764040854508,0.04873477,138.24,138.22,3.04]
[1764040860515,3.17873477,138.24,138.21,0.05178792]
[1764040860717,3.17873477,138.24,138.21,3.20178792]
[1764040861611,0.04873477,138.24,138.21,3.20178792]
[1764040862114,0.04873477,138.24,138.21,9.71558792]
[1764040862419,0.04873477,138.24,138.22,3.15]
[1764040865021,0.04873477,138.24,138.22,9.6635]
[1764040865214,0.04873477,138.24,138.23,3.15]
[1764040870122,6.5107,138.29,138.23,3.15]
[1764040870317,6.5107,138.29,138.24,3.15]
[1764040870617,3.13,138.3,138.24,3.15]
[1764040871229,0.04995453,138.28,138.27,3.15]
[1764040872719,3.13,138.37,138.28,3.15]
[1764040872922,3.13,138.37,138.3,3.15]
[1764040873111,9.6353,138.4,138.32,3.15]
[1764040873315,101.1885,138.41,138.32,3.15]
[1764040873316,3.13,138.42,138.33,3.15]
[1764040873828,3.17679794,138.39,138.36,3.19874135]
[1764040874928,0.04679794,138.39,138.36,3.19874135]
[1764040877628,0.04679794,138.39,138.36,0.04874135]
[1764040877629,3.04679794,138.39,138.36,0.04874135]
[1764040877928,3.04679794,138.39,138.36,3.01874135]
[1764040881231,0.04679794,138.39,138.36,3.01874135]
[1764040882134,0.04679794,138.39,138.38,2.97]
[1764040896547,0.04679794,138.39,138.37,9.4763]
[1764040896748,0.04679794,138.39,138.38,2.97]
[1764040898044,0.04679794,138.39,138.37,6.5063]
[1764040898045,0.04679794,138.39,138.37,2.97]
[1764040898653,0.04679794,138.39,138.37,9.4764]
[1764040898949,0.04679794,138.39,138.38,2.97]
[1764040901255,3.04679794,138.39,138.36,3.01874135]
[1764040902056,3.04679794,138.39,138.36,0.04874135]
[1764040902552,3.04679794,138.39,138.36,3.01874135]
[1764040902947,0.04679794,138.39,138.36,3.01874135]
[1764040903954,3.04679794,138.39,138.36,3.01874135]
[1764040907558,3.06,138.38,138.36,3.01874135]
[1764040908365,9.61239794,138.39,138.36,3.01874135]
[1764040908950,3.10679794,138.39,138.36,3.01874135]
[1764040911065,0.04679794,138.39,138.37,3.0]
[1764040912063,0.04679794,138.39,138.37,9.5065]
[1764040912264,0.04679794,138.39,138.38,3.0]
[1764040918665,0.04679794,138.39,138.38,9.62847719]
[1764040920256,6.5028,138.45,138.4,3.07]
[1764040920567,2.89,138.48,138.44,3.07]
[1764040920757,2.89,138.48,138.43,6.62847719]
[1764040920961,2.89,138.47,138.42,9.69847719]
[1764040921168,2.89,138.45,138.42,3.07]
[1764040921368,2.94482893,138.45,138.42,3.12100056]
[1764040921668,0.05482893,138.45,138.42,3.12100056]
[1764040921971,2.05881765,138.5,138.42,3.12100056]
[1764040921972,4.94881765,138.5,138.44,3.07]
[1764040922154,2.89,138.5,138.45,3.07]
[1764040922970,2.94188381,138.49,138.46,3.12257282]
[1764040923759,0.05188381,138.49,138.46,3.12257282]
[1764040924261,0.05188381,138.49,138.46,9.62467282]
[1764040924469,0.05188381,138.49,138.47,3.07]
[1764040924764,0.05188381,138.49,138.48,3.07]
[1764040926671,2.94188381,138.49,138.46,3.12257282]
[1764040926871,0.05188381,138.49,138.46,3.12257282]
[1764040927459,0.05188381,138.49,138.46,5.18139047]
[1764040927657,0.05188381,138.49,138.47,3.07]
[1764040930370,11.44701765,138.55,138.48,3.07]
[1764040931475,11.44701765,138.55,138.46,45.05881765]
[1764040931476,0.05331149,138.53,138.5,3.11947771]
[1764040932573,2.94331149,138.53,138.5,3.11947771]
[1764040933284,0.05331149,138.53,138.5,3.11947771]
[1764040933579,2.94331149,138.53,138.5,3.11947771]
[1764040934479,2.94331149,138.53,138.5,0.04947771]
[1764040936881,2.89,138.52,138.5,0.04947771]
[1764040937082,4.94881765,138.51,138.5,0.04947771]
[1764040937279,2.89,138.51,138.5,0.04947771]
[1764040942503,2.89,138.5,138.44,3.11]
[1764040943403,0.05261302,138.48,138.46,0.04871323]
[1764040943602,2.89,138.47,138.46,0.04871323]
[1764040944597,2.89,138.47,138.41,27.79]
[1764040944799,2.89,138.47,138.41,3.11]
[1764040945502,2.89,138.47,138.42,3.11]
[1764040945708,2.89,138.47,138.43,3.16400927]
[1764040946600,6.55421302,138.48,138.43,3.16400927]
[1764040946817,0.05261302,138.48,138.43,3.16400927]
[1764040947701,2.94261302,138.48,138.43,3.16400927]
[1764040947899,0.05261302,138.48,138.43,3.16400927]
[1764040948099,0.05261302,138.48,138.44,3.11]
[1764040948502,2.94261302,138.48,138.44,3.11]
[1764040951198,0.05261302,138.48,138.44,3.11]
[1764040951407,2.94261302,138.48,138.44,3.11]
[1764040953004,2.89,138.47,138.43,3.16400927]
[1764040955313,2.89,138.47,138.43,0.05400927]
[1764040955506,9.3919,138.47,138.43,0.05400927]
[1764040955706,2.89,138.46,138.43,0.05400927]
[1764040959316,6.5028,138.45,138.43,0.05400927]
[1764040959511,2.89,138.45,138.43,3.16400927]
[1764040959705,2.89,138.45,138.43,0.05400927]
[1764040962518,9.44401302,138.48,138.43,3.16400927]
[1764040962719,0.05261302,138.48,138.43,3.16400927]
[1764040962918,2.94261302,138.48,138.43,3.16400927]
[1764040963417,9.44411302,138.48,138.43,3.16400927]
[1764040963619,2.89,138.47,138.43,3.16400927]
[1764040964624,9.392,138.47,138.43,3.16400927]
[1764040965128,2.89,138.47,138.43,3.16400927]
[1764040965416,0.05261302,138.48,138.43,9.79248646]
[1764040965620,2.94261302,138.48,138.44,3.11]
[1764040967024,3.0,138.47,138.44,3.11]
[1764040970224,9.5019,138.47,138.44,3.11]
[1764040970624,3.0,138.46,138.43,0.05400927]
[1764040971621,3.0,138.44,138.43,0.05400927]
[1764040986934,0.04871069,138.45,138.43,3.01400927]
[1764040988246,3.16871069,138.45,138.43,3.01400927]
[1764040988547,0.04871069,138.45,138.43,3.01400927]
[1764040992948,3.16871069,138.45,138.43,3.01400927]
[1764040993149,3.16871069,138.45,138.43,0.05400927]
[1764040994741,9.67171069,138.45,138.43,0.05400927]
[1764040994947,3.12,138.44,138.43,0.05400927]
[1764041001558,6.55171069,138.45,138.43,0.05400927]
[1764041001559,6.55171069,138.45,138.43,3.12400927]
[1764041002145,9.54171069,138.45,138.43,3.12400927]
[1764041002350,2.99,138.44,138.43,0.05400927]
[1764041002556,9.54171069,138.45,138.43,0.05400927]
[1764041002862,9.54171069,138.45,138.43,3.12400927]
[1764041003658,3.03871069,138.45,138.43,3.12400927]
[1764041008061,0.04871069,138.45,138.43,3.12400927]
[1764041008260,3.03871069,138.45,138.43,3.12400927]
[1764041010566,3.03871069,138.45,138.43,0.05400927]
[1764041013070,2.99,138.44,138.43,0.05400927]
[1764041015272,3.03871069,138.45,138.43,3.12400927]
[1764041015570,3.03871069,138.45,138.43,0.05400927]
[1764041017572,0.04871069,138.45,138.43,9.76075911]
[1764041017772,0.04871069,138.45,138.44,3.07]
[1764041018369,0.04871069,138.45,138.44,9.70674984]
[1764041018765,3.03871069,138.45,138.44,6.63674984]
[1764041019868,3.03871069,138.45,138.44,6.64973372]
[1764041022171,0.04871069,138.45,138.44,6.64973372]
[1764041022477,0.04871069,138.45,138.44,9.71973372]
[1764041023772,2.99,138.5,138.45,3.07]
[1764041023973,2.99,138.5,138.46,3.07]
[1764041024873,3.03571027,138.49,138.47,0.05299234]
[1764041026680,3.03571027,138.49,138.47,3.12299234]
[1764041028092,0.04571027,138.49,138.47,3.12299234]
[1764041028485,0.04571027,138.49,138.48,2.92]
[1764041028790,3.04571027,138.49,138.47,0.05299234]
[1764041029984,3.04571027,138.49,138.47,2.97299234]
[1764041030386,3.04571027,138.49,138.47,0.05299234]
[1764041034493,0.04571027,138.49,138.47,2.97299234]
[1764041034992,0.04571027,138.49,138.48,2.92]
[1764041035389,2.89,138.53,138.49,2.88]
[1764041036096,2.89,138.53,138.5,9.58514228]
[1764041036284,2.89,138.53,138.51,6.70514228]
[1764041036485,2.89,138.53,138.52,6.70514228]
[1764041037091,2.93998539,138.54,138.52,6.70514228]
[1764041037396,2.93998539,138.54,138.53,6.70514228]
[1764041037593,101.0462,138.6,138.53,9.58514228]
[1764041037896,2.89,138.59,138.55,2.88]
[1764041038102,2.89,138.59,138.56,6.70514228]
[1764041038287,2.89,138.59,138.55,2.88]
[1764041038489,2.89,138.58,138.56,6.69282055]
[1764041038688,2.89,138.58,138.57,6.69282055]
[1764041038888,2.93685756,138.58,138.57,6.69282055]
[1764041039294,4.9942455,138.58,138.57,6.69282055]
[1764041040500,2.93685756,138.58,138.57,6.69282055]
[1764041040995,2.93685756,138.58,138.57,3.51282055]
[1764041041196,2.93685756,138.58,138.48,34.92423161]
[1764041041197,3.5442455,138.58,138.5,2.88]
[1764041041398,2.05738794,138.55,138.5,2.88]
[1764041041693,6.497,138.58,138.5,2.88]
[1764041042099,0.04810206,138.55,138.53,2.93044616]
[1764041042693,0.04810206,138.55,138.53,0.05044616]
[1764041044506,0.04810206,138.55,138.53,2.93044616]
[1764041047808,0.04810206,138.55,138.53,4.9878341]
[1764041048115,0.04810206,138.55,138.54,2.88]
[1764041048809,0.04810206,138.55,138.53,2.93044616]
[1764041050406,0.04810206,138.55,138.53,9.42934616]
[1764041050698,0.04810206,138.55,138.54,2.88]
[1764041056411,0.04810206,138.55,138.53,0.05044616]
[1764041056609,0.04810206,138.55,138.53,2.93044616]
[1764041057318,0.04810206,138.55,138.53,0.05044616]
[1764041058106,6.54630206,138.55,138.53,0.05044616]
[1764041060105,0.04810206,138.55,138.53,3.15044616]
[1764041063726,6.54630206,138.55,138.53,3.15044616]
[1764041065424,0.04810206,138.55,138.53,3.15044616]
[1764041066918,125.7301,138.6,138.53,3.15044616]
[1764041067222,104.26449339,138.59,138.53,0.05044616]
[1764041067622,6.4981,138.55,138.53,0.05044616]
[1764041067823,6.55003877,138.55,138.53,0.05044616]
[1764041084630,6.55003877,138.55,138.53,0.00044616]
[1764041084833,101.1081,138.52,138.47,6.64973372]
[1764041085132,24.68,138.51,138.46,9.74973372]
[1764041085830,0.04952158,138.5,138.47,0.04713711]
[1764041086030,6.501,138.49,138.47,0.04713711]
[1764041087626,0.04952158,138.5,138.47,3.00713711]
[1764041087936,0.04952158,138.5,138.48,2.96]
[1764041098335,0.04952158,138.5,138.48,9.59497871]
[1764041098539,0.04952158,138.5,138.49,2.92]
[1764041100836,6.499,138.53,138.49,2.92]
[1764041101536,6.4995,138.52,138.49,2.92]
[1764041101740,6.54723111,138.52,138.49,2.97528528]
[1764041102241,6.54723111,138.52,138.5,2.92]
[1764041103536,0.04773111,138.52,138.5,2.92]
[1764041103741,0.04773111,138.52,138.51,2.92]
[1764041104038,0.04773111,138.52,138.49,2.97528528]
[1764041104243,0.04773111,138.52,138.5,2.92]
[1764041113641,0.04773111,138.52,138.5,9.5578408]
[1764041113847,0.04773111,138.52,138.51,2.92]
[1764041122652,0.04773111,138.52,138.5,9.5478408]
[1764041122961,0.04773111,138.52,138.5,2.91]
[1764041124158,6.54743111,138.52,138.5,2.91]
[1764041128060,6.5001,138.51,138.49,9.60312608]
[1764041128254,6.5001,138.51,138.5,2.91]
[1764041129061,6.5001,138.51,138.49,6.69312608]
[1764041129263,6.5001,138.51,138.49,0.05528528]
[1764041133861,8.55489169,138.51,138.49,0.05528528]
[1764041135558,101.1372,138.48,138.43,6.6378408]
[1764041135762,101.1372,138.48,138.41,11.83051301]
[1764041135763,2.05479169,138.47,138.42,9.5478408]
[1764041135967,2.05479169,138.47,138.43,2.91]
[1764041136465,0.05207861,138.46,138.44,0.04657357]
[1764041136659,6.5031,138.45,138.44,0.04657357]
[1764041144469,103.21239169,138.45,138.39,2.91]
[1764041144771,2.05479169,138.45,138.39,2.91]
[1764041144968,8.55789169,138.45,138.39,2.91]
[1764041145167,2.05479169,138.45,138.39,2.91]
[1764041145469,0.04761821,138.43,138.42,2.91]
[1764041149475,0.04761821,138.43,138.41,3.11942062]
[1764041149966,2.05479169,138.42,138.41,0.04942062]
[1764041150162,2.05479169,138.42,138.38,3.07]
[1764041151060,8.55919169,138.42,138.39,0.05334816]
[1764041151373,8.55919169,138.42,138.39,3.12334816]
[1764041151573,6.5047,138.41,138.39,3.12334816]
[1764041153173,6.5047,138.41,138.39,0.05334816]
[1764041162578,2.05479169,138.4,138.39,0.05334816]
[1764041162779,101.1996,138.39,138.34,2.96]
[1764041163081,2.05479169,138.38,138.34,2.96]
[1764041163278,6.5071,138.36,138.34,2.96]
[1764041163773,6.55430432,138.36,138.34,3.01489168]
[1764041163974,0.04720432,138.36,138.34,3.01489168]
[1764041165483,101.2282,138.35,138.27,6.6378408]
[1764041165687,101.2282,138.35,138.28,2.96]
[1764041165688,2.05479169,138.33,138.28,2.96]
[1764041165887,2.05479169,138.31,138.28,2.96]
[1764041166086,6.51,138.3,138.28,2.96]
[1764041166279,2.05479169,138.29,138.24,2.96]
[1764041166679,6.5114,138.27,138.25,0.04577318]
[1764041166985,8.56619169,138.27,138.25,0.04577318]
[1764041167578,0.04744943,138.28,138.25,3.00577318]
[1764041188393,0.04744943,138.28,138.26,2.87]
[1764041189200,0.04744943,138.28,138.22,2.87]
[1764041189409,3.22200085,138.28,138.22,2.87]
[1764041190304,0.05363158,138.26,138.24,2.91899373]
[1764041196313,0.05363158,138.26,138.25,2.87]
[1764041212627,0.05363158,138.26,138.25,9.5078408]
[1764041215235,0.05363158,138.26,138.25,2.87]
[1764041217235,0.05363158,138.26,138.25,9.5078408]
[1764041219933,6.5102,138.3,138.26,3.13]
[1764041220127,6.5102,138.3,138.24,8.96950674]
[1764041220128,101.2382,138.34,138.28,3.13]
[1764041220434,6.5091,138.32,138.28,3.13]
[1764041220826,0.05272384,138.31,138.29,0.04641469]
[1764041221035,6.74612283,138.36,138.3,3.13]
[1764041221228,104.42310085,138.39,138.3,3.13]
[1764041221229,6.74612283,138.37,138.3,3.13]
[1764041221431,6.74612283,138.38,138.3,3.13]
[1764041221829,104.42310085,138.39,138.3,3.13]
[1764041221830,6.74612283,138.39,138.32,3.13]
[1764041222138,24.72,138.41,138.37,3.13]
[1764041222329,0.05336911,138.4,138.38,3.1797019]
[1764041222529,0.05336911,138.4,138.38,3.17684714]
[1764041228839,24.72,138.46,138.39,3.13]
[1764041229236,31.2226,138.46,138.39,3.13]
[1764041229740,31.2226,138.46,138.41,0.05376244]
[1764041229941,0.05037892,138.44,138.42,3.13]
[1764041238548,6.5015,138.48,138.42,3.13]
[1764041239756,0.0466876,138.46,138.42,3.13]
[1764041254447,6.5490876,138.46,138.42,3.13]
[1764041256652,0.0466876,138.46,138.42,3.13]
[1764041256862,2.0568068,138.43,138.41,0.05376244]
[1764041257956,8.5608068,138.43,138.41,0.05376244]
[1764041258758,6.504,138.43,138.41,3.06376244]
[1764041260158,6.504,138.43,138.41,0.05376244]
[1764041260661,6.504,138.43,138.41,3.06376244]
[1764041263266,24.7466876,138.46,138.41,3.06376244]
[1764041265060,6.5034,138.44,138.41,3.06376244]
[1764041265761,6.5038,138.43,138.41,0.05376244]
[1764041265958,8.5606068,138.43,138.41,0.05376244]
[1764041266154,6.5038,138.43,138.41,0.05376244]
[1764041266354,8.5606068,138.43,138.41,0.05376244]
[1764041268269,8.5606068,138.43,138.41,3.11376244]
[1764041268469,6.5038,138.43,138.41,3.11376244]
[1764041277077,6.5038,138.43,138.41,0.05376244]
[1764041277274,6.5038,138.43,138.41,3.19376244]
[1764041281178,24.7466876,138.46,138.42,3.14]
[1764041282075,2.0568068,138.45,138.41,3.19376244]
[1764041283078,6.5037,138.43,138.41,3.19376244]
[1764041287683,8.5605068,138.43,138.41,0.05376244]
[1764041288276,6.5037,138.43,138.41,3.19376244]
[1764041292585,6.5037,138.43,138.41,0.05376244]
[1764041298088,6.5037,138.43,138.41,3.20376244]
[1764041298297,26.8034944,138.46,138.41,3.20376244]
[1764041298591,24.7466876,138.46,138.41,3.20376244]
[1764041298792,26.8034944,138.46,138.41,0.05376244]
[1764041300084,6.5037,138.43,138.41,0.05376244]
[1764041301895,26.7568068,138.42,138.41,0.05376244]
[1764041302097,103.2520068,138.4,138.35,12.07051301]
[1764041302285,103.2520068,138.4,138.34,8.92051301]
[1764041302600,2.0568068,138.38,138.34,8.92051301]
[1764041302799,2.0568068,138.38,138.34,12.07051301]
[1764041303092,6.55452638,138.37,138.35,0.05307402]
[1764041303296,0.04782638,138.37,138.35,0.05307402]
[1764041303494,0.04782638,138.37,138.35,3.20307402]
[1764041308392,6.5054,138.4,138.36,3.15]
[1764041308588,6.5054,138.4,138.37,3.15]
[1764041309408,6.55746451,138.4,138.37,3.15]
[1764041311305,0.05206451,138.4,138.37,3.15]
[1764041326415,6.55716451,138.4,138.37,3.15]
[1764041326720,0.05206451,138.4,138.35,55.12358703]
[1764041326911,0.05206451,138.4,138.35,46.20307402]
[1764041327114,6.5066,138.37,138.35,2.98307402]
[1764041327411,6.5066,138.37,138.35,0.05307402]
[1764041327810,6.5066,138.37,138.35,2.98307402]
[1764041328907,6.5066,138.37,138.35,0.05307402]
[1764041329217,6.5066,138.37,138.35,2.98307402]
[1764041330923,6.506,138.39,138.35,2.98307402]
[1764041331111,0.05206451,138.4,138.35,2.98307402]
[1764041332113,6.5061,138.38,138.35,2.98307402]
[1764041334214,6.5066,138.37,138.35,2.98307402]
[1764041334811,6.5066,138.37,138.35,0.05307402]
[1764041338123,6.5059,138.39,138.35,3.18307402]
[1764041338726,6.5061,138.38,138.35,3.18307402]
[1764041342445,6.5065,138.37,138.35,0.05307402]
[1764041346737,6.5065,138.37,138.35,3.18307402]
[1764041355150,0.05206451,138.4,138.35,3.18307402]
[1764041356049,6.5061,138.38,138.35,3.18307402]
[1764041356846,6.5061,138.38,138.36,3.03]
[1764041358750,0.05206451,138.4,138.36,3.03]
[1764041358946,6.55756451,138.4,138.36,3.03]
[1764041362052,6.55756451,138.4,138.38,3.03]
[1764041362658,6.55756451,138.4,138.38,9.73695017]
[1764041362851,6.55756451,138.4,138.38,3.03]
[1764041365258,0.05206451,138.4,138.38,3.03]
[1764041368861,0.05206451,138.4,138.37,6.70695017]
[1764041369161,0.05206451,138.4,138.38,3.03]
[1764041369856,0.05206451,138.4,138.38,9.73695017]
[1764041370560,0.05206451,138.4,138.38,3.03]
[1764041371258,0.05206451,138.4,138.38,9.73695017]
[1764041371859,0.05206451,138.4,138.38,3.03]
[1764041372268,0.05206451,138.4,138.37,9.73695017]
[1764041372963,0.05206451,138.4,138.38,3.03]
[1764041377158,0.05206451,138.4,138.38,9.73695017]
[1764041377369,0.05206451,138.4,138.39,3.03]
[1764041383581,0.05206451,138.4,138.39,9.73695017]
[1764041384365,0.05206451,138.4,138.39,3.03]
[1764041384868,127.9239142,138.44,138.39,3.03]
[1764041384869,6.504,138.43,138.39,3.03]
[1764041385173,6.504,138.43,138.4,3.03]
[1764041385874,6.55092121,138.43,138.4,3.03]
[1764041387878,6.55092121,138.43,138.41,3.09]
[1764041395790,0.04692121,138.43,138.41,3.09]
[1764041397394,6.55062121,138.43,138.41,3.09]
[1764041401394,6.5046,138.42,138.4,9.56695017]
[1764041401588,2.10593541,138.43,138.39,2.86]
[1764041402604,6.5053,138.4,138.38,9.61364207]
[1764041402901,6.5053,138.4,138.38,0.0466919]
[1764041403704,6.5053,138.4,138.38,2.9066919]
[1764041408507,6.5053,138.4,138.38,9.61364207]
[1764041410005,6.5053,138.4,138.38,0.0466919]
[1764041410208,6.506,138.38,138.36,6.70695017]
[1764041410409,101.2085,138.38,138.35,5.017e-05]
[1764041410909,101.2085,138.38,138.33,11.78051301]
[1764041411110,125.8885,138.38,138.34,2.86]
[1764041411312,6.5076,138.35,138.33,11.78051301]
[1764041411518,6.5076,138.35,138.33,11.83333766]
[1764041411807,6.55347946,138.37,138.34,2.86]
[1764041413109,0.04677946,138.37,138.35,2.86]
[1764041417918,6.55337946,138.37,138.35,2.86]
[1764041419223,0.04677946,138.37,138.35,2.86]
[1764041423019,0.04677946,138.37,138.33,11.94333766]
[1764041423226,0.04677946,138.37,138.33,3.02282465]
[1764041423710,6.55327946,138.37,138.33,3.02282465]
[1764041424312,6.507,138.36,138.33,3.02282465]
[1764041426822,6.5075,138.35,138.33,0.05282465]
[1764041427214,6.5075,138.35,138.33,3.02282465]
[1764041429120,6.5075,138.35,138.33,0.05282465]
[1764041431325,0.04677946,138.37,138.33,3.02282465]
[1764041433132,6.55347946,138.37,138.33,3.02282465]
[1764041434430,6.507,138.36,138.33,3.02282465]
[1764041436033,6.5075,138.35,138.33,3.02282465]
[1764041437923,6.5075,138.35,138.33,0.05282465]
[1764041466435,6.5075,138.35,138.33,2.97282465]
[1764041469441,6.5075,138.35,138.33,0.05282465]
[1764041470753,31.2072,138.36,138.33,2.97282465]
[1764041471053,31.2072,138.36,138.33,9.68464374]
[1764041471243,6.5075,138.35,138.33,9.68464374]
[1764041473053,6.5075,138.35,138.33,6.76464374]
[1764041473846,6.5075,138.35,138.33,0.05282465]
[1764041474048,6.5102,138.3,138.27,6.71181909]
[1764041474352,24.7,138.31,138.27,2.92]
[1764041474653,6.5088,138.33,138.29,2.92]
[1764041475041,6.5088,138.33,138.27,6.71181909]
[1764041475042,0.05363032,138.32,138.31,2.92]
[1764041497367,6.5049,138.41,138.35,2.95]
[1764041497567,2.06066997,138.42,138.35,2.95]
[1764041497763,2.06066997,138.4,138.35,2.95]
[1764041497966,2.06066997,138.38,138.34,2.95]
[1764041498270,0.04817822,138.37,138.35,0.05157327]
[1764041501381,0.04817822,138.37,138.35,3.00157327]
[1764041502177,0.04817822,138.37,138.35,0.05157327]
[1764041502375,2.06066997,138.36,138.35,0.05157327]
[1764041505268,26.78066997,138.36,138.35,0.05157327]
[1764041506873,101.2291,138.35,138.29,3.15]
[1764041507068,2.06066997,138.33,138.29,3.15]
[1764041507268,6.509,138.32,138.29,3.15]
[1764041507469,2.06066997,138.35,138.3,3.15]
[1764041507976,0.05250343,138.34,138.31,3.19789653]
[1764041508477,6.5085,138.33,138.31,3.19789653]
[1764041508670,8.56916997,138.33,138.31,0.04789653]
[1764041508871,24.72,138.32,138.31,0.04789653]
[1764041512375,101.2571,138.31,138.26,3.15]
[1764041512578,2.06066997,138.3,138.26,3.15]
[1764041513474,0.0533383,138.29,138.27,3.19701479]
[1764041514083,6.5108,138.28,138.27,3.19701479]
[1764041515890,0.0533383,138.29,138.27,3.19701479]
[1764041518776,6.5636383,138.29,138.27,3.19701479]
[1764041525592,6.5126,138.25,138.23,3.09]
[1764041525792,2.06066997,138.26,138.21,3.09]
[1764041526694,0.04932471,138.25,138.22,3.14274449]
[1764041526887,6.5127,138.24,138.22,3.14274449]
[1764041530388,24.72,138.23,138.18,3.09]
[1764041530583,2.06066997,138.22,138.18,3.09]
[1764041531293,6.5147,138.2,138.18,3.09]